{"text_format":"3","workbook":"xlsx","n_sheets":1,"sheets":["Orçamento de Despesas"],"not_rendered":{"charts":2,"defined_names":3},"read":"whole","date_system":"1900"}

{"sheet":"Orçamento de Despesas","index":0,"n_rows":47,"n_cols":7,"rows_kept":47,"merged":[[0,1,0,4],[0,5,0,6],[16,1,16,6],[48,1,48,6]]}
[null,"Orçamento de Despesas",{"$nulls":3},"CONTOSO, 2013"]
[]
[]
[null,"ORÇAMENTO DO PESSOAL"]
{"$rows_empty":7}
[null,"STATUS","PESSOAL","ORÇAMENTO","REAL","DIFERENÇA (R$)","DIFERENÇA (%)"]
[null,{"$f":"IFERROR(tblPersonnelExpenses[[#This Row],[REAL]]/tblPersonnelExpenses[[#This Row],[ORÇAMENTO]],\"\")","v":{"v":1.13,"d":"$1.13"}},"Escritório",{"v":500,"d":"R$ 500.00"},{"v":565,"d":"R$ 565.00"},{"$f":"tblPersonnelExpenses[[#This Row],[ORÇAMENTO]]-tblPersonnelExpenses[[#This Row],[REAL]]","v":{"v":-65,"d":"-R$ 65.00"}},{"$f":"IFERROR(tblPersonnelExpenses[DIFERENÇA (R$)]/tblPersonnelExpenses[ORÇAMENTO],\"\")","v":{"v":-0.13,"d":"-13%"}}]
[null,{"$f":"IFERROR(tblPersonnelExpenses[[#This Row],[REAL]]/tblPersonnelExpenses[[#This Row],[ORÇAMENTO]],\"\")","v":{"v":1.2,"d":"$1.20"}},"Loja",{"v":125,"d":"R$ 125.00"},{"v":150,"d":"R$ 150.00"},{"$f":"tblPersonnelExpenses[[#This Row],[ORÇAMENTO]]-tblPersonnelExpenses[[#This Row],[REAL]]","v":{"v":-25,"d":"-R$ 25.00"}},{"$f":"IFERROR(tblPersonnelExpenses[DIFERENÇA (R$)]/tblPersonnelExpenses[ORÇAMENTO],\"\")","v":{"v":-0.2,"d":"-20%"}}]
[null,{"$f":"IFERROR(tblPersonnelExpenses[[#This Row],[REAL]]/tblPersonnelExpenses[[#This Row],[ORÇAMENTO]],\"\")","v":{"v":1,"d":"$1.00"}},"Vendedores",{"v":100,"d":"R$ 100.00"},{"v":100,"d":"R$ 100.00"},{"$f":"tblPersonnelExpenses[[#This Row],[ORÇAMENTO]]-tblPersonnelExpenses[[#This Row],[REAL]]","v":{"v":0,"d":"R$ 0.00"}},{"$f":"IFERROR(tblPersonnelExpenses[DIFERENÇA (R$)]/tblPersonnelExpenses[ORÇAMENTO],\"\")","v":{"v":0,"d":"0%"}}]
[null,{"$f":"IFERROR(tblPersonnelExpenses[[#This Row],[REAL]]/tblPersonnelExpenses[[#This Row],[ORÇAMENTO]],\"\")","v":{"v":0.9,"d":"$0.90"}},"Outros",{"v":100,"d":"R$ 100.00"},{"v":90,"d":"R$ 90.00"},{"$f":"tblPersonnelExpenses[[#This Row],[ORÇAMENTO]]-tblPersonnelExpenses[[#This Row],[REAL]]","v":{"v":10,"d":"R$ 10.00"}},{"$f":"IFERROR(tblPersonnelExpenses[DIFERENÇA (R$)]/tblPersonnelExpenses[ORÇAMENTO],\"\")","v":{"v":0.1,"d":"10%"}}]
[]
[]
[null,"ORÇAMENTO OPERACIONAL"]
{"$rows_empty":7}
[null,"STATUS","OPERACIONAL","ORÇAMENTO","REAL","DIFERENÇA (R$)","DIFERENÇA (%)"]
[null,{"$f":"IFERROR(tblOperatingExpenses[[#This Row],[REAL]]/tblOperatingExpenses[[#This Row],[ORÇAMENTO]],\"\")","v":{"v":0.98,"d":"$0.98"}},"Publicidade",{"v":250,"d":"R$ 250.00"},{"v":245,"d":"R$ 245.00"},{"$f":"tblOperatingExpenses[[#This Row],[ORÇAMENTO]]-tblOperatingExpenses[[#This Row],[REAL]]","v":{"v":5,"d":"R$ 5.00"}},{"$f":"IFERROR(tblOperatingExpenses[[#This Row],[DIFERENÇA (R$)]]/tblOperatingExpenses[[#This Row],[ORÇAMENTO]],\"\")","v":{"v":0.02,"d":"2%"}}]
[null,{"$f":"IFERROR(tblOperatingExpenses[[#This Row],[REAL]]/tblOperatingExpenses[[#This Row],[ORÇAMENTO]],\"\")","v":{"v":1.2,"d":"$1.20"}},"Dívidas",{"v":125,"d":"R$ 125.00"},{"v":150,"d":"R$ 150.00"},{"$f":"tblOperatingExpenses[[#This Row],[ORÇAMENTO]]-tblOperatingExpenses[[#This Row],[REAL]]","v":{"v":-25,"d":"-R$ 25.00"}},{"$f":"IFERROR(tblOperatingExpenses[[#This Row],[DIFERENÇA (R$)]]/tblOperatingExpenses[[#This Row],[ORÇAMENTO]],\"\")","v":{"v":-0.2,"d":"-20%"}}]
[null,{"$f":"IFERROR(tblOperatingExpenses[[#This Row],[REAL]]/tblOperatingExpenses[[#This Row],[ORÇAMENTO]],\"\")","v":{"v":1,"d":"$1.00"}},"Benefícios",{"v":100,"d":"R$ 100.00"},{"v":100,"d":"R$ 100.00"},{"$f":"tblOperatingExpenses[[#This Row],[ORÇAMENTO]]-tblOperatingExpenses[[#This Row],[REAL]]","v":{"v":0,"d":"R$ 0.00"}},{"$f":"IFERROR(tblOperatingExpenses[[#This Row],[DIFERENÇA (R$)]]/tblOperatingExpenses[[#This Row],[ORÇAMENTO]],\"\")","v":{"v":0,"d":"0%"}}]
[null,{"$f":"IFERROR(tblOperatingExpenses[[#This Row],[REAL]]/tblOperatingExpenses[[#This Row],[ORÇAMENTO]],\"\")","v":{"v":0.9,"d":"$0.90"}},"Suprimentos",{"v":100,"d":"R$ 100.00"},{"v":90,"d":"R$ 90.00"},{"$f":"tblOperatingExpenses[[#This Row],[ORÇAMENTO]]-tblOperatingExpenses[[#This Row],[REAL]]","v":{"v":10,"d":"R$ 10.00"}},{"$f":"IFERROR(tblOperatingExpenses[[#This Row],[DIFERENÇA (R$)]]/tblOperatingExpenses[[#This Row],[ORÇAMENTO]],\"\")","v":{"v":0.1,"d":"10%"}}]
[null,{"$f":"IFERROR(tblOperatingExpenses[[#This Row],[REAL]]/tblOperatingExpenses[[#This Row],[ORÇAMENTO]],\"\")","v":""},"Postagem",null,null,{"$f":"tblOperatingExpenses[[#This Row],[ORÇAMENTO]]-tblOperatingExpenses[[#This Row],[REAL]]","v":{"v":0,"d":"R$ 0.00"}},{"$f":"IFERROR(tblOperatingExpenses[[#This Row],[DIFERENÇA (R$)]]/tblOperatingExpenses[[#This Row],[ORÇAMENTO]],\"\")","v":""}]
[null,{"$f":"IFERROR(tblOperatingExpenses[[#This Row],[REAL]]/tblOperatingExpenses[[#This Row],[ORÇAMENTO]],\"\")","v":""},"Aluguel ou hipoteca",null,null,{"$f":"tblOperatingExpenses[[#This Row],[ORÇAMENTO]]-tblOperatingExpenses[[#This Row],[REAL]]","v":{"v":0,"d":"R$ 0.00"}},{"$f":"IFERROR(tblOperatingExpenses[[#This Row],[DIFERENÇA (R$)]]/tblOperatingExpenses[[#This Row],[ORÇAMENTO]],\"\")","v":""}]
[null,{"$f":"IFERROR(tblOperatingExpenses[[#This Row],[REAL]]/tblOperatingExpenses[[#This Row],[ORÇAMENTO]],\"\")","v":""},"Despesas de vendas",null,null,{"$f":"tblOperatingExpenses[[#This Row],[ORÇAMENTO]]-tblOperatingExpenses[[#This Row],[REAL]]","v":{"v":0,"d":"R$ 0.00"}},{"$f":"IFERROR(tblOperatingExpenses[[#This Row],[DIFERENÇA (R$)]]/tblOperatingExpenses[[#This Row],[ORÇAMENTO]],\"\")","v":""}]
[null,{"$f":"IFERROR(tblOperatingExpenses[[#This Row],[REAL]]/tblOperatingExpenses[[#This Row],[ORÇAMENTO]],\"\")","v":""},"Impostos",null,null,{"$f":"tblOperatingExpenses[[#This Row],[ORÇAMENTO]]-tblOperatingExpenses[[#This Row],[REAL]]","v":{"v":0,"d":"R$ 0.00"}},{"$f":"IFERROR(tblOperatingExpenses[[#This Row],[DIFERENÇA (R$)]]/tblOperatingExpenses[[#This Row],[ORÇAMENTO]],\"\")","v":""}]
[null,{"$f":"IFERROR(tblOperatingExpenses[[#This Row],[REAL]]/tblOperatingExpenses[[#This Row],[ORÇAMENTO]],\"\")","v":""},"Serviços essenciais",null,null,{"$f":"tblOperatingExpenses[[#This Row],[ORÇAMENTO]]-tblOperatingExpenses[[#This Row],[REAL]]","v":{"v":0,"d":"R$ 0.00"}},{"$f":"IFERROR(tblOperatingExpenses[[#This Row],[DIFERENÇA (R$)]]/tblOperatingExpenses[[#This Row],[ORÇAMENTO]],\"\")","v":""}]
[null,{"$f":"IFERROR(tblOperatingExpenses[[#This Row],[REAL]]/tblOperatingExpenses[[#This Row],[ORÇAMENTO]],\"\")","v":""},"Outros",null,null,{"$f":"tblOperatingExpenses[[#This Row],[ORÇAMENTO]]-tblOperatingExpenses[[#This Row],[REAL]]","v":{"v":0,"d":"R$ 0.00"}},{"$f":"IFERROR(tblOperatingExpenses[[#This Row],[DIFERENÇA (R$)]]/tblOperatingExpenses[[#This Row],[ORÇAMENTO]],\"\")","v":""}]
[null,{"$f":"IFERROR(tblOperatingExpenses[[#This Row],[REAL]]/tblOperatingExpenses[[#This Row],[ORÇAMENTO]],\"\")","v":""},"Seguro",null,null,{"$f":"tblOperatingExpenses[[#This Row],[ORÇAMENTO]]-tblOperatingExpenses[[#This Row],[REAL]]","v":{"v":0,"d":"R$ 0.00"}},{"$f":"IFERROR(tblOperatingExpenses[[#This Row],[DIFERENÇA (R$)]]/tblOperatingExpenses[[#This Row],[ORÇAMENTO]],\"\")","v":""}]
[null,{"$f":"IFERROR(tblOperatingExpenses[[#This Row],[REAL]]/tblOperatingExpenses[[#This Row],[ORÇAMENTO]],\"\")","v":""},"Juros",null,null,{"$f":"tblOperatingExpenses[[#This Row],[ORÇAMENTO]]-tblOperatingExpenses[[#This Row],[REAL]]","v":{"v":0,"d":"R$ 0.00"}},{"$f":"IFERROR(tblOperatingExpenses[[#This Row],[DIFERENÇA (R$)]]/tblOperatingExpenses[[#This Row],[ORÇAMENTO]],\"\")","v":""}]
[null,{"$f":"IFERROR(tblOperatingExpenses[[#This Row],[REAL]]/tblOperatingExpenses[[#This Row],[ORÇAMENTO]],\"\")","v":""},"Telefone",null,null,{"$f":"tblOperatingExpenses[[#This Row],[ORÇAMENTO]]-tblOperatingExpenses[[#This Row],[REAL]]","v":{"v":0,"d":"R$ 0.00"}},{"$f":"IFERROR(tblOperatingExpenses[[#This Row],[DIFERENÇA (R$)]]/tblOperatingExpenses[[#This Row],[ORÇAMENTO]],\"\")","v":""}]
[null,{"$f":"IFERROR(tblOperatingExpenses[[#This Row],[REAL]]/tblOperatingExpenses[[#This Row],[ORÇAMENTO]],\"\")","v":""},"Manutenção e reparos",null,null,{"$f":"tblOperatingExpenses[[#This Row],[ORÇAMENTO]]-tblOperatingExpenses[[#This Row],[REAL]]","v":{"v":0,"d":"R$ 0.00"}},{"$f":"IFERROR(tblOperatingExpenses[[#This Row],[DIFERENÇA (R$)]]/tblOperatingExpenses[[#This Row],[ORÇAMENTO]],\"\")","v":""}]
[null,{"$f":"IFERROR(tblOperatingExpenses[[#This Row],[REAL]]/tblOperatingExpenses[[#This Row],[ORÇAMENTO]],\"\")","v":""},"Honorários advocatícios",null,null,{"$f":"tblOperatingExpenses[[#This Row],[ORÇAMENTO]]-tblOperatingExpenses[[#This Row],[REAL]]","v":{"v":0,"d":"R$ 0.00"}},{"$f":"IFERROR(tblOperatingExpenses[[#This Row],[DIFERENÇA (R$)]]/tblOperatingExpenses[[#This Row],[ORÇAMENTO]],\"\")","v":""}]
[null,{"$f":"IFERROR(tblOperatingExpenses[[#This Row],[REAL]]/tblOperatingExpenses[[#This Row],[ORÇAMENTO]],\"\")","v":""},"Depreciação",null,null,{"$f":"tblOperatingExpenses[[#This Row],[ORÇAMENTO]]-tblOperatingExpenses[[#This Row],[REAL]]","v":{"v":0,"d":"R$ 0.00"}},{"$f":"IFERROR(tblOperatingExpenses[[#This Row],[DIFERENÇA (R$)]]/tblOperatingExpenses[[#This Row],[ORÇAMENTO]],\"\")","v":""}]
[null,{"$f":"IFERROR(tblOperatingExpenses[[#This Row],[REAL]]/tblOperatingExpenses[[#This Row],[ORÇAMENTO]],\"\")","v":""},"Remessa",null,null,{"$f":"tblOperatingExpenses[[#This Row],[ORÇAMENTO]]-tblOperatingExpenses[[#This Row],[REAL]]","v":{"v":0,"d":"R$ 0.00"}},{"$f":"IFERROR(tblOperatingExpenses[[#This Row],[DIFERENÇA (R$)]]/tblOperatingExpenses[[#This Row],[ORÇAMENTO]],\"\")","v":""}]
[null,{"$f":"IFERROR(tblOperatingExpenses[[#This Row],[REAL]]/tblOperatingExpenses[[#This Row],[ORÇAMENTO]],\"\")","v":""},"Armazenamento",null,null,{"$f":"tblOperatingExpenses[[#This Row],[ORÇAMENTO]]-tblOperatingExpenses[[#This Row],[REAL]]","v":{"v":0,"d":"R$ 0.00"}},{"$f":"IFERROR(tblOperatingExpenses[[#This Row],[DIFERENÇA (R$)]]/tblOperatingExpenses[[#This Row],[ORÇAMENTO]],\"\")","v":""}]
[null,{"$f":"IFERROR(tblOperatingExpenses[[#This Row],[REAL]]/tblOperatingExpenses[[#This Row],[ORÇAMENTO]],\"\")","v":""},"Outros",null,null,{"$f":"tblOperatingExpenses[[#This Row],[ORÇAMENTO]]-tblOperatingExpenses[[#This Row],[REAL]]","v":{"v":0,"d":"R$ 0.00"}},{"$f":"IFERROR(tblOperatingExpenses[[#This Row],[DIFERENÇA (R$)]]/tblOperatingExpenses[[#This Row],[ORÇAMENTO]],\"\")","v":""}]
[null,null,"Total de Despesas",{"$f":"SUBTOTAL(109,tblOperatingExpenses[ORÇAMENTO],tblPersonnelExpenses[ORÇAMENTO])","v":{"v":1400,"d":"R$ 1,400.00"}},{"$f":"SUBTOTAL(109,tblOperatingExpenses[REAL],tblPersonnelExpenses[REAL])","v":{"v":1490,"d":"R$ 1,490.00"}},{"$f":"SUBTOTAL(109,tblOperatingExpenses[DIFERENÇA (R$)],tblPersonnelExpenses[DIFERENÇA (R$)])","v":{"v":-90,"d":"-R$ 90.00"}},{"$f":"IFERROR(SUM(tblOperatingExpenses[[#Totals],[DIFERENÇA (R$)]]/tblOperatingExpenses[[#Totals],[ORÇAMENTO]]),\"\")","v":{"v":-0.06428571428571428,"d":"-6%"}}]